[Event "*** Titled Tuesday Blitz"]
[Site "Chess.com"]
[Date "2020.04.21"]
[Round "4"]
[White "claudyna16"]
[Black "Gajuchess"]
[Result "0-1"]
[WhiteElo "2516"]
[BlackElo "2729"]
[TimeControl "180+1"]
[EndTime "10:41:09 PDT"]
[Termination "Gajuchess won by resignation"]

1. c4 {[%clk 0:02:56.7]} 1... e6 {[%clk 0:02:59.4]} 2. g3 {[%clk 0:02:57]} 2...
d5 {[%clk 0:03:00]} 3. Bg2 {[%clk 0:02:57.6]} 3... dxc4 {[%clk 0:02:57.1]} 4.
Nf3 {[%clk 0:02:57.1]} 4... c6 {[%clk 0:02:57.1]} 5. a4 {[%clk 0:02:56.2]} 5...
Nd7 {[%clk 0:02:53.3]} 6. O-O {[%clk 0:02:54.7]} 6... a5 {[%clk 0:02:53.1]} 7.
Na3 {[%clk 0:02:50.3]} 7... Nb6 {[%clk 0:02:53]} 8. Qc2 {[%clk 0:02:50.6]} 8...
Qd5 {[%clk 0:02:48.3]} 9. Rd1 {[%clk 0:02:47.1]} 9... Nf6 {[%clk 0:02:47.2]} 10.
d3 {[%clk 0:02:33.4]} 10... cxd3 {[%clk 0:02:46.6]} 11. Rxd3 {[%clk 0:02:34.3]}
11... Qc5 {[%clk 0:02:45.1]} 12. Qd1 {[%clk 0:02:22.9]} 12... Nbd5 {[%clk
0:02:30.7]} 13. Nh4 {[%clk 0:01:47.7]} 13... Be7 {[%clk 0:02:16.8]} 14. e4
{[%clk 0:01:47.5]} 14... Nb4 {[%clk 0:01:53.4]} 15. Be3 {[%clk 0:01:47.6]} 15...
Nxd3 {[%clk 0:01:36.6]} 16. Bxc5 {[%clk 0:01:47.1]} 16... Nxc5 {[%clk
0:01:37.5]} 17. Nc4 {[%clk 0:01:31.9]} 17... O-O {[%clk 0:01:36.6]} 18. e5
{[%clk 0:01:27.6]} 18... Nd5 {[%clk 0:01:31.5]} 19. Nf3 {[%clk 0:01:27.8]} 19...
Rd8 {[%clk 0:01:26.4]} 20. Qe2 {[%clk 0:01:26.3]} 20... Bd7 {[%clk 0:01:08.7]}
21. Nd6 {[%clk 0:01:23.4]} 21... Bxd6 {[%clk 0:01:08.3]} 22. exd6 {[%clk
0:01:24.3]} 22... Be8 {[%clk 0:01:02.7]} 23. Qc2 {[%clk 0:01:23.5]} 23... b6
{[%clk 0:01:00.5]} 24. Ne5 {[%clk 0:01:23.5]} 24... Rxd6 {[%clk 0:00:58.3]} 25.
Nc4 {[%clk 0:01:23.7]} 25... Nb4 {[%clk 0:00:41.6]} 26. Qe2 {[%clk 0:01:08.1]}
26... Rd4 {[%clk 0:00:40.9]} 27. Nxb6 {[%clk 0:01:01]} 27... Rad8 {[%clk
0:00:40.9]} 28. Bf3 {[%clk 0:00:58.1]} 28... Nb3 {[%clk 0:00:31.9]} 29. Re1
{[%clk 0:00:50.6]} 29... Nd2 {[%clk 0:00:21.5]} 30. Kg2 {[%clk 0:00:39.5]} 30...
c5 {[%clk 0:00:20.6]} 31. Rc1 {[%clk 0:00:33.2]} 31... Nxf3 {[%clk 0:00:20.1]}
32. Rxc5 {[%clk 0:00:25.3]} 32... Nd2 {[%clk 0:00:19.6]} 33. Kh3 {[%clk
0:00:23.9]} 33... h6 {[%clk 0:00:19]} 34. Nc8 {[%clk 0:00:24]} 34... Kh7 {[%clk
0:00:16.2]} 35. Ne7 {[%clk 0:00:24.2]} 35... Bxa4 {[%clk 0:00:13]} 36. Rxa5
{[%clk 0:00:24]} 36... Bc2 {[%clk 0:00:12.3]} 37. Qb5 {[%clk 0:00:21.8]} 37...
Nd5 {[%clk 0:00:11.8]} 38. Nxd5 {[%clk 0:00:20.5]} 38... R4xd5 {[%clk
0:00:11.1]} 39. Qb6 {[%clk 0:00:20.6]} 39... Bf5+ {[%clk 0:00:10]} 40. Kg2
{[%clk 0:00:20.3]} 40... Be4+ {[%clk 0:00:10.3]} 41. Kh3 {[%clk 0:00:20.7]}
41... Rxa5 {[%clk 0:00:10.5]} 42. Qxa5 {[%clk 0:00:20.5]} 42... Rd5 {[%clk
0:00:10.8]} 43. Qc3 {[%clk 0:00:19.7]} 43... Rh5+ {[%clk 0:00:05.9]} 44. Kg4
{[%clk 0:00:19.8]} 44... f5+ {[%clk 0:00:04.9]} 45. Kf4 {[%clk 0:00:20]} 45...
Nf3 {[%clk 0:00:03.4]} 46. Ke3 {[%clk 0:00:19.1]} 46... Rxh2 {[%clk 0:00:03.7]}
47. b4 {[%clk 0:00:16.9]} 47... Rh1 {[%clk 0:00:04.2]} 48. b5 {[%clk 0:00:17.1]}
48... Re1+ {[%clk 0:00:04.4]} 49. Qxe1 {[%clk 0:00:11]} 49... Nxe1 {[%clk
0:00:05.3]} 50. b6 {[%clk 0:00:11.4]} 50... Nf3 {[%clk 0:00:05.6]} 51. Kf4
{[%clk 0:00:11.5]} 51... Nd4 {[%clk 0:00:05.5]} 52. Ke5 {[%clk 0:00:11.7]} 52...
Nc6+ {[%clk 0:00:06]} 53. Kxe6 {[%clk 0:00:11.7]} 53... Kg6 {[%clk 0:00:06.4]}
0-1

[Event "*** Titled Tuesday Blitz"]
[Site "Chess.com"]
[Date "2020.04.21"]
[Round "4"]
[White "ahappypawn"]
[Black "DaggiGretarsson"]
[Result "0-1"]
[WhiteElo "2356"]
[BlackElo "2600"]
[TimeControl "180+1"]
[EndTime "10:41:11 PDT"]
[Termination "DaggiGretarsson won on time"]

1. d4 {[%clk 0:03:00.9]} 1... g6 {[%clk 0:02:59.6]} 2. c4 {[%clk 0:02:59.6]}
2... Bg7 {[%clk 0:02:59.8]} 3. Nc3 {[%clk 0:03:00.2]} 3... c5 {[%clk 0:02:59]}
4. d5 {[%clk 0:02:58.4]} 4... Bxc3+ {[%clk 0:02:58.3]} 5. bxc3 {[%clk
0:02:58.2]} 5... f5 {[%clk 0:02:58.6]} 6. Nf3 {[%clk 0:02:47.8]} 6... Nf6 {[%clk
0:02:57.2]} 7. Bh6 {[%clk 0:02:37.8]} 7... Qa5 {[%clk 0:02:49.6]} 8. Qc2 {[%clk
0:02:12.9]} 8... Rg8 {[%clk 0:02:45.4]} 9. h4 {[%clk 0:02:03.8]} 9... d6 {[%clk
0:02:43.5]} 10. Nd2 {[%clk 0:01:59.7]} 10... Nbd7 {[%clk 0:02:39.3]} 11. g3
{[%clk 0:01:54.7]} 11... Ne5 {[%clk 0:02:37.4]} 12. Bg2 {[%clk 0:01:46.4]} 12...
Bd7 {[%clk 0:02:33.4]} 13. Rb1 {[%clk 0:01:45]} 13... O-O-O {[%clk 0:02:23.4]}
14. Kf1 {[%clk 0:01:31.4]} 14... Qa4 {[%clk 0:02:17.9]} 15. Qxa4 {[%clk
0:01:11.1]} 15... Bxa4 {[%clk 0:02:17]} 16. Bf4 {[%clk 0:01:10.3]} 16... Nfd7
{[%clk 0:01:56.8]} 17. e4 {[%clk 0:01:00]} 17... Bc2 {[%clk 0:01:52.1]} 18. Rc1
{[%clk 0:00:44.3]} 18... Bd3+ {[%clk 0:01:50.7]} 19. Kg1 {[%clk 0:00:41.9]}
19... Nxc4 {[%clk 0:01:48.8]} 20. exf5 {[%clk 0:00:26.5]} 20... gxf5 {[%clk
0:01:40.3]} 21. Kh2 {[%clk 0:00:26.1]} 21... Nxd2 {[%clk 0:01:34.3]} 22. Bxd2
{[%clk 0:00:25.8]} 22... c4 {[%clk 0:01:33.2]} 23. Rhe1 {[%clk 0:00:25.6]} 23...
Rde8 {[%clk 0:01:24.2]} 24. Bg5 {[%clk 0:00:23.7]} 24... Ne5 {[%clk 0:01:20.5]}
25. Kg1 {[%clk 0:00:19.1]} 25... Kd7 {[%clk 0:01:17.4]} 26. Re3 {[%clk
0:00:16.2]} 26... b5 {[%clk 0:01:13.5]} 27. Rce1 {[%clk 0:00:15.9]} 27... Rg7
{[%clk 0:01:04]} 28. f4 {[%clk 0:00:14.6]} 28... Ng4 {[%clk 0:01:03.3]} 29. Re6
{[%clk 0:00:14.8]} 29... h6 {[%clk 0:00:59.8]} 30. Bxh6 {[%clk 0:00:08.7]} 30...
Nxh6 {[%clk 0:00:59.6]} 31. Rxh6 {[%clk 0:00:09.4]} 31... Rxg3 {[%clk
0:00:59.5]} 32. Kf2 {[%clk 0:00:08.7]} 32... Rg4 {[%clk 0:00:52.9]} 33. Bf3
{[%clk 0:00:08.9]} 33... Rxf4 {[%clk 0:00:43.2]} 34. Kg3 {[%clk 0:00:08.3]}
34... Rxf3+ {[%clk 0:00:43.1]} 35. Kxf3 {[%clk 0:00:08.6]} 35... Be4+ {[%clk
0:00:43.2]} 36. Kf4 {[%clk 0:00:09.1]} 36... Bxd5 {[%clk 0:00:41.1]} 37. Kxf5
{[%clk 0:00:08.7]} 37... Rf8+ {[%clk 0:00:41]} 38. Kg5 {[%clk 0:00:09.1]} 38...
e5 {[%clk 0:00:38.3]} 39. Rg6 {[%clk 0:00:08.6]} 39... Be6 {[%clk 0:00:33.8]}
40. h5 {[%clk 0:00:08.5]} 40... Rf5+ {[%clk 0:00:33.9]} 41. Kh4 {[%clk
0:00:08.4]} 41... Rf3 {[%clk 0:00:33.2]} 42. h6 {[%clk 0:00:08]} 42... Rxc3
{[%clk 0:00:31.9]} 43. Kg5 {[%clk 0:00:06.9]} 43... Rh3 {[%clk 0:00:30.7]} 44.
Kf6 {[%clk 0:00:06.9]} 44... Bd5 {[%clk 0:00:29.6]} 45. Rg7+ {[%clk 0:00:06]}
45... Kc6 {[%clk 0:00:29.8]} 46. h7 {[%clk 0:00:06.2]} 46... c3 {[%clk
0:00:29.4]} 47. Rc1 {[%clk 0:00:04.5]} 47... b4 {[%clk 0:00:29]} 48. Ke7 {[%clk
0:00:04]} 48... Kc5 {[%clk 0:00:28.1]} 49. Kf8 {[%clk 0:00:02]} 49... Kd4 {[%clk
0:00:27.2]} 50. Rg4+ {[%clk 0:00:01.7]} 50... e4 {[%clk 0:00:26.3]} 51. Kg7
{[%clk 0:00:01.8]} 51... Kd3 {[%clk 0:00:24]} 52. h8=Q {[%clk 0:00:02.7]} 52...
Rxh8 {[%clk 0:00:23.5]} 53. Kxh8 {[%clk 0:00:03.6]} 53... e3 {[%clk 0:00:23.6]}
54. Rgg1 {[%clk 0:00:03.9]} 54... e2 {[%clk 0:00:22.6]} 55. Rg3+ {[%clk
0:00:02.5]} 55... Kd2 {[%clk 0:00:22.3]} 56. Rgg1 {[%clk 0:00:02.7]} 56... Bf3
{[%clk 0:00:21.4]} 57. Kg7 {[%clk 0:00:03]} 57... d5 {[%clk 0:00:21.5]} 58. Kf6
{[%clk 0:00:03.4]} 58... d4 {[%clk 0:00:21.9]} 59. Ke5 {[%clk 0:00:03.8]} 59...
Ke3 {[%clk 0:00:21.5]} 60. Rg3 {[%clk 0:00:02.8]} 60... d3 {[%clk 0:00:21.6]}
61. Rh1 {[%clk 0:00:01.9]} 61... d2 {[%clk 0:00:21.4]} 62. Rhh3 {[%clk
0:00:01.9]} 62... d1=Q {[%clk 0:00:15.9]} 63. Rxf3+ {[%clk 0:00:02.2]} 63... Kd2
{[%clk 0:00:16.2]} 64. Rd3+ {[%clk 0:00:02.6]} 64... Kc2 {[%clk 0:00:16.5]} 0-1

[Event "*** Titled Tuesday Blitz"]
[Site "Chess.com"]
[Date "2020.04.21"]
[Round "4"]
[White "Algeriano22"]
[Black "FranciscodelaF"]
[Result "1-0"]
[WhiteElo "2630"]
[BlackElo "2420"]
[TimeControl "180+1"]
[EndTime "10:41:13 PDT"]
[Termination "Algeriano22 won on time"]

1. e4 {[%clk 0:03:00.9]} 1... e6 {[%clk 0:02:59.2]} 2. d3 {[%clk 0:03:00.5]}
2... d5 {[%clk 0:02:58.7]} 3. Qe2 {[%clk 0:03:00.6]} 3... dxe4 {[%clk
0:01:18.1]} 4. dxe4 {[%clk 0:03:01.5]} 4... e5 {[%clk 0:01:18.7]} 5. Nf3 {[%clk
0:03:00.9]} 5... Bd6 {[%clk 0:01:18.3]} 6. g3 {[%clk 0:02:59]} 6... Ne7 {[%clk
0:01:17.3]} 7. Bg2 {[%clk 0:02:59.2]} 7... O-O {[%clk 0:01:16.8]} 8. O-O {[%clk
0:02:59.7]} 8... f6 {[%clk 0:01:13.2]} 9. Nbd2 {[%clk 0:02:56.3]} 9... Be6
{[%clk 0:01:13.1]} 10. Nc4 {[%clk 0:02:56.3]} 10... Nec6 {[%clk 0:01:12.1]} 11.
c3 {[%clk 0:02:49.7]} 11... Be7 {[%clk 0:01:10.8]} 12. Nh4 {[%clk 0:02:45.3]}
12... Nd7 {[%clk 0:01:07.6]} 13. Nf5 {[%clk 0:02:44.1]} 13... g6 {[%clk
0:01:05]} 14. Nfe3 {[%clk 0:02:37]} 14... Nb6 {[%clk 0:01:03]} 15. Rd1 {[%clk
0:02:35]} 15... Qe8 {[%clk 0:01:03]} 16. Nd5 {[%clk 0:02:35.1]} 16... Rc8 {[%clk
0:01:01]} 17. Nce3 {[%clk 0:02:33.7]} 17... Qf7 {[%clk 0:01:00.3]} 18. a4 {[%clk
0:02:33.1]} 18... f5 {[%clk 0:00:52]} 19. a5 {[%clk 0:02:31]} 19... Nd7 {[%clk
0:00:51.9]} 20. a6 {[%clk 0:02:28.7]} 20... b6 {[%clk 0:00:51.9]} 21. Qb5 {[%clk
0:01:54.4]} 21... Ncb8 {[%clk 0:00:50.7]} 22. Nxe7+ {[%clk 0:01:51.5]} 22...
Qxe7 {[%clk 0:00:51.6]} 23. Nd5 {[%clk 0:01:52.1]} 23... Qf7 {[%clk 0:00:51]}
24. Bh6 {[%clk 0:01:49.5]} 24... c6 {[%clk 0:00:50]} 25. Qe2 {[%clk 0:01:37.5]}
25... Rfe8 {[%clk 0:00:45.8]} 26. Bg5 {[%clk 0:01:28.6]} 26... Kg7 {[%clk
0:00:30.5]} 27. Ne3 {[%clk 0:01:15.1]} 27... f4 {[%clk 0:00:24.2]} 28. Ng4
{[%clk 0:01:13.7]} 28... Bxg4 {[%clk 0:00:22.3]} 29. Qxg4 {[%clk 0:01:02.4]}
29... h6 {[%clk 0:00:22.4]} 30. Bh3 {[%clk 0:01:02.2]} 30... Rc7 {[%clk
0:00:13.2]} 31. Rd6 {[%clk 0:00:43.8]} 31... hxg5 {[%clk 0:00:12]} 32. Qxg5
{[%clk 0:00:44.7]} 32... Nf6 {[%clk 0:00:08.9]} 33. Bf5 {[%clk 0:00:42.8]} 33...
Rce7 {[%clk 0:00:05.2]} 34. Rad1 {[%clk 0:00:41.6]} 34... Nbd7 {[%clk
0:00:04.7]} 35. h4 {[%clk 0:00:41.6]} 35... Kh7 {[%clk 0:00:04]} 36. Bxd7 {[%clk
0:00:22.4]} 36... Nxd7 {[%clk 0:00:04.1]} 37. h5 {[%clk 0:00:22.6]} 37... Nf6
{[%clk 0:00:03.3]} 38. h6 {[%clk 0:00:22]} 38... Ng8 {[%clk 0:00:03]} 39. Kg2
{[%clk 0:00:21.5]} 39... Re6 {[%clk 0:00:02.3]} 40. Rd7 {[%clk 0:00:20.7]} 40...
R8e7 {[%clk 0:00:02.9]} 41. Rd8 {[%clk 0:00:19.2]} 41... Qf6 {[%clk 0:00:03.2]}
42. Qg4 {[%clk 0:00:19.1]} 42... g5 {[%clk 0:00:03.2]} 43. Rb8 {[%clk
0:00:16.7]} 43... Nxh6 {[%clk 0:00:02.5]} 44. Rh1 {[%clk 0:00:15.6]} 44... Re8
{[%clk 0:00:02.1]} 45. Rb7+ {[%clk 0:00:14.9]} 45... R8e7 {[%clk 0:00:01.9]} 46.
Rh5 {[%clk 0:00:14.7]} 46... Kg7 {[%clk 0:00:02.4]} 47. Rxg5+ {[%clk 0:00:14.1]}
47... Kh7 {[%clk 0:00:03.3]} 48. Qh5 {[%clk 0:00:14]} 48... Qf7 {[%clk
0:00:03.5]} 49. Qh3 {[%clk 0:00:12.4]} 49... Rg6 {[%clk 0:00:03.2]} 50. Rf5
{[%clk 0:00:12.1]} 50... Qg7 {[%clk 0:00:03.2]} 51. Rxe7 {[%clk 0:00:12.1]}
51... Qxe7 {[%clk 0:00:03.4]} 52. Qh5 {[%clk 0:00:12.3]} 52... fxg3 {[%clk
0:00:02.9]} 53. fxg3 {[%clk 0:00:12]} 53... Qg7 {[%clk 0:00:03.1]} 54. Rf3
{[%clk 0:00:07.3]} 54... Rg5 {[%clk 0:00:03.1]} 55. Qh3 {[%clk 0:00:07.8]} 55...
Rg4 {[%clk 0:00:03.3]} 56. Qh5 {[%clk 0:00:07.4]} 56... Rg5 {[%clk 0:00:03.6]}
57. Qh3 {[%clk 0:00:07.7]} 57... Rg6 {[%clk 0:00:02.2]} 58. Qc8 {[%clk
0:00:06.9]} 1-0

[Event "*** Titled Tuesday Blitz"]
[Site "Chess.com"]
[Date "2020.04.21"]
[Round "4"]
[White "EnergeticHay"]
[Black "WonderChampion"]
[Result "1-0"]
[WhiteElo "2209"]
[BlackElo "1780"]
[TimeControl "180+1"]
[EndTime "10:41:14 PDT"]
[Termination "EnergeticHay won by checkmate"]

1. e4 {[%clk 0:03:00.9]} 1... c5 {[%clk 0:02:58.9]} 2. Nf3 {[%clk 0:03:01.2]}
2... g6 {[%clk 0:02:58.2]} 3. d4 {[%clk 0:03:01.5]} 3... cxd4 {[%clk 0:02:57.8]}
4. Nxd4 {[%clk 0:03:02.4]} 4... Nc6 {[%clk 0:02:56.3]} 5. c4 {[%clk 0:03:01.9]}
5... Nf6 {[%clk 0:02:54.3]} 6. Nc3 {[%clk 0:03:01.9]} 6... Nxd4 {[%clk
0:02:50.1]} 7. Qxd4 {[%clk 0:03:01.6]} 7... d6 {[%clk 0:02:50]} 8. Be2 {[%clk
0:03:00.6]} 8... Bg7 {[%clk 0:02:49.3]} 9. Be3 {[%clk 0:03:01.2]} 9... O-O
{[%clk 0:02:48.7]} 10. Qd2 {[%clk 0:03:01.7]} 10... a5 {[%clk 0:02:46.4]} 11. f3
{[%clk 0:02:54.3]} 11... Be6 {[%clk 0:02:45.8]} 12. Rc1 {[%clk 0:02:47.8]} 12...
a4 {[%clk 0:02:45]} 13. Kf2 {[%clk 0:02:19.2]} 13... Qa5 {[%clk 0:02:35.5]} 14.
Nd5 {[%clk 0:02:19.2]} 14... Qxd2 {[%clk 0:02:33.6]} 15. Bxd2 {[%clk 0:02:20.1]}
15... Bxd5 {[%clk 0:02:24.9]} 16. cxd5 {[%clk 0:02:19.6]} 16... Rfc8 {[%clk
0:02:20.9]} 17. Rxc8+ {[%clk 0:02:13.2]} 17... Rxc8 {[%clk 0:02:21.3]} 18. Rc1
{[%clk 0:02:14.1]} 18... Rxc1 {[%clk 0:02:20.6]} 19. Bxc1 {[%clk 0:02:15]} 19...
Nd7 {[%clk 0:02:20.3]} 20. Bb5 {[%clk 0:02:07.1]} 20... Nb6 {[%clk 0:01:53.4]}
21. Be3 {[%clk 0:02:03.2]} 21... Na8 {[%clk 0:01:50.8]} 22. Bxa4 {[%clk
0:01:18.3]} 22... Bxb2 {[%clk 0:01:47.4]} 23. Ke2 {[%clk 0:01:18.8]} 23... Nc7
{[%clk 0:01:44.2]} 24. Bb6 {[%clk 0:01:18.2]} 24... Na6 {[%clk 0:01:41.2]} 25.
Kd2 {[%clk 0:01:15.4]} 25... Bg7 {[%clk 0:01:37]} 26. Kd3 {[%clk 0:01:03.9]}
26... Nb4+ {[%clk 0:01:26.4]} 27. Kc4 {[%clk 0:01:03.9]} 27... Na6 {[%clk
0:01:17.8]} 28. Bd7 {[%clk 0:00:54]} 28... Nb8 {[%clk 0:01:14.3]} 29. Bc8 {[%clk
0:00:50.4]} 29... Kf8 {[%clk 0:01:03.5]} 30. Bxb7 {[%clk 0:00:50.1]} 30... Ke8
{[%clk 0:01:01.4]} 31. a4 {[%clk 0:00:45.4]} 31... Kd7 {[%clk 0:00:59.6]} 32. a5
{[%clk 0:00:43.2]} 32... e6 {[%clk 0:00:50.5]} 33. a6 {[%clk 0:00:41.7]} 33...
Nxa6 {[%clk 0:00:48.4]} 34. Bxa6 {[%clk 0:00:41.3]} 34... Be5 {[%clk 0:00:45.7]}
35. g3 {[%clk 0:00:39.1]} 35... f5 {[%clk 0:00:42.6]} 36. Bb5+ {[%clk 0:00:38]}
36... Ke7 {[%clk 0:00:41.4]} 37. dxe6 {[%clk 0:00:38.3]} 37... Kxe6 {[%clk
0:00:40.7]} 38. Kd3 {[%clk 0:00:35.5]} 38... fxe4+ {[%clk 0:00:39.3]} 39. Kxe4
{[%clk 0:00:31.7]} 39... d5+ {[%clk 0:00:38.8]} 40. Ke3 {[%clk 0:00:31]} 40...
Bf6 {[%clk 0:00:37.1]} 41. Bd4 {[%clk 0:00:30.9]} 41... Be7 {[%clk 0:00:35.9]}
42. Ba4 {[%clk 0:00:28.2]} 42... Kf5 {[%clk 0:00:32]} 43. Bb3 {[%clk 0:00:27.2]}
43... Ke6 {[%clk 0:00:30.9]} 44. Kf4 {[%clk 0:00:20.5]} 44... Bd6+ {[%clk
0:00:30.6]} 45. Kg4 {[%clk 0:00:20.8]} 45... h6 {[%clk 0:00:29.1]} 46. Bg7
{[%clk 0:00:19.9]} 46... h5+ {[%clk 0:00:25.6]} 47. Kg5 {[%clk 0:00:20.3]} 47...
Kf7 {[%clk 0:00:22.9]} 48. Bd4 {[%clk 0:00:19]} 48... Ke6 {[%clk 0:00:22.1]} 49.
Kxg6 {[%clk 0:00:19]} 49... h4 {[%clk 0:00:22.4]} 50. gxh4 {[%clk 0:00:18.3]}
50... Bxh2 {[%clk 0:00:23]} 51. h5 {[%clk 0:00:18.2]} 51... Bf4 {[%clk
0:00:22.1]} 52. h6 {[%clk 0:00:18.5]} 52... Bxh6 {[%clk 0:00:21.9]} 53. Kxh6
{[%clk 0:00:19.4]} 53... Kf5 {[%clk 0:00:22.6]} 54. Bxd5 {[%clk 0:00:19.2]}
54... Kf4 {[%clk 0:00:23.5]} 55. Be4 {[%clk 0:00:20.1]} 55... Kg3 {[%clk
0:00:22.7]} 56. Kg5 {[%clk 0:00:20.4]} 56... Kg2 {[%clk 0:00:22.2]} 57. f4+
{[%clk 0:00:20.7]} 57... Kf1 {[%clk 0:00:21.6]} 58. f5 {[%clk 0:00:20.6]} 58...
Ke1 {[%clk 0:00:22.5]} 59. Bc3+ {[%clk 0:00:20.8]} 59... Kd1 {[%clk 0:00:23.4]}
60. Bc2+ {[%clk 0:00:20.7]} 60... Kc1 {[%clk 0:00:24.3]} 61. f6 {[%clk
0:00:21.5]} 61... Kxc2 {[%clk 0:00:23.3]} 62. f7 {[%clk 0:00:22.4]} 62... Kxc3
{[%clk 0:00:23.7]} 63. f8=Q {[%clk 0:00:22.8]} 63... Kd2 {[%clk 0:00:24.6]} 64.
Qe7 {[%clk 0:00:22.9]} 64... Kd3 {[%clk 0:00:25.5]} 65. Qe6 {[%clk 0:00:23.7]}
65... Kc3 {[%clk 0:00:26.4]} 66. Kf5 {[%clk 0:00:24.2]} 66... Kc2 {[%clk
0:00:27.3]} 67. Qe5 {[%clk 0:00:25.1]} 67... Kb3 {[%clk 0:00:26.6]} 68. Qe4
{[%clk 0:00:26]} 68... Kb2 {[%clk 0:00:25.4]} 69. Kf4 {[%clk 0:00:26.9]} 69...
Ka3 {[%clk 0:00:26.3]} 70. Qd5 {[%clk 0:00:27.5]} 70... Kb2 {[%clk 0:00:26.1]}
71. Qc6 {[%clk 0:00:28.4]} 71... Kb3 {[%clk 0:00:27]} 72. Ke4 {[%clk 0:00:29.3]}
72... Kb4 {[%clk 0:00:27]} 73. Kd4 {[%clk 0:00:30.2]} 73... Kb3 {[%clk
0:00:27.9]} 74. Qc5 {[%clk 0:00:30.8]} 74... Kb2 {[%clk 0:00:28.8]} 75. Qc4
{[%clk 0:00:31.1]} 75... Ka3 {[%clk 0:00:28.7]} 76. Qb5 {[%clk 0:00:31.1]} 76...
Ka2 {[%clk 0:00:29.6]} 77. Qb4 {[%clk 0:00:31.7]} 77... Ka1 {[%clk 0:00:28.8]}
78. Kd3 {[%clk 0:00:32.3]} 78... Ka2 {[%clk 0:00:27.9]} 79. Kc2 {[%clk
0:00:32.9]} 79... Ka1 {[%clk 0:00:28]} 80. Qb2# {[%clk 0:00:33.4]} 1-0

[Event "*** Titled Tuesday Blitz"]
[Site "Chess.com"]
[Date "2020.04.21"]
[Round "4"]
[White "Igor_Lysyj"]
[Black "Harut-1998"]
[Result "1/2-1/2"]
[WhiteElo "2801"]
[BlackElo "2627"]
[TimeControl "180+1"]
[EndTime "10:41:15 PDT"]
[Termination "Game drawn by repetition"]

1. d4 {[%clk 0:02:59.5]} 1... Nf6 {[%clk 0:02:57.8]} 2. c4 {[%clk 0:02:59]} 2...
e6 {[%clk 0:02:57.7]} 3. Nf3 {[%clk 0:02:58.6]} 3... d5 {[%clk 0:02:57.1]} 4. e3
{[%clk 0:02:58]} 4... b6 {[%clk 0:02:47.7]} 5. cxd5 {[%clk 0:02:44.3]} 5... exd5
{[%clk 0:02:46.4]} 6. Nc3 {[%clk 0:02:44.4]} 6... Bd6 {[%clk 0:02:43.1]} 7. Nb5
{[%clk 0:02:41.1]} 7... Be7 {[%clk 0:02:37.6]} 8. Qc2 {[%clk 0:02:39.2]} 8... c5
{[%clk 0:02:31.2]} 9. Be2 {[%clk 0:02:34.2]} 9... O-O {[%clk 0:02:28.2]} 10. O-O
{[%clk 0:02:33.8]} 10... Nc6 {[%clk 0:02:26.9]} 11. dxc5 {[%clk 0:02:27.3]}
11... bxc5 {[%clk 0:02:24.3]} 12. Rd1 {[%clk 0:02:27]} 12... Be6 {[%clk
0:02:10.4]} 13. a3 {[%clk 0:02:21.1]} 13... Qd7 {[%clk 0:02:04.9]} 14. Bd2
{[%clk 0:02:17.4]} 14... Bf5 {[%clk 0:01:53.5]} 15. Qc1 {[%clk 0:02:16.2]} 15...
Rab8 {[%clk 0:01:48.8]} 16. Be1 {[%clk 0:02:07.6]} 16... Rb7 {[%clk 0:01:43.2]}
17. Nc3 {[%clk 0:01:25]} 17... Rfb8 {[%clk 0:01:41.1]} 18. Na4 {[%clk 0:01:22]}
18... Qd6 {[%clk 0:01:17.3]} 19. Ba6 {[%clk 0:01:07.5]} 19... Rd7 {[%clk
0:01:09.9]} 20. Be2 {[%clk 0:01:03.9]} 20... Rdb7 {[%clk 0:01:08.2]} 21. Bc3
{[%clk 0:00:57.3]} 21... Ne4 {[%clk 0:00:59.7]} 22. Be1 {[%clk 0:00:54.3]} 22...
Bf6 {[%clk 0:00:56.8]} 23. Ra2 {[%clk 0:00:51]} 23... h6 {[%clk 0:00:41.4]} 24.
Nd2 {[%clk 0:00:49.9]} 24... Nxd2 {[%clk 0:00:38.3]} 25. Bxd2 {[%clk 0:00:47.5]}
25... c4 {[%clk 0:00:35.9]} 26. Bc3 {[%clk 0:00:44.4]} 26... Ne5 {[%clk
0:00:33.4]} 27. Bb4 {[%clk 0:00:38.2]} 27... Qc6 {[%clk 0:00:31]} 28. Nc3 {[%clk
0:00:36.8]} 28... Nd3 {[%clk 0:00:28.7]} 29. Bxd3 {[%clk 0:00:36.2]} 29... Bxd3
{[%clk 0:00:29]} 30. Rd2 {[%clk 0:00:34.5]} 30... d4 {[%clk 0:00:26.6]} 31. exd4
{[%clk 0:00:33.1]} 31... Bg5 {[%clk 0:00:26.5]} 32. d5 {[%clk 0:00:31]} 32...
Qb6 {[%clk 0:00:21.5]} 33. Na4 {[%clk 0:00:25]} 33... Qd4 {[%clk 0:00:19.7]} 34.
Nc3 {[%clk 0:00:21.8]} 34... Qf4 {[%clk 0:00:14]} 35. Na4 {[%clk 0:00:18]} 35...
Qd4 {[%clk 0:00:10.7]} 36. Nc3 {[%clk 0:00:17.1]} 36... Qf4 {[%clk 0:00:10.8]}
37. Nd1 {[%clk 0:00:16.3]} 37... Rxb4 {[%clk 0:00:07.2]} 38. axb4 {[%clk
0:00:15.7]} 38... Qxd2 {[%clk 0:00:07.1]} 39. Qxd2 {[%clk 0:00:15.4]} 39... Bxd2
{[%clk 0:00:06.6]} 40. Rxa7 {[%clk 0:00:15.4]} 40... Bxb4 {[%clk 0:00:06]} 41.
h4 {[%clk 0:00:14.8]} 41... Rd8 {[%clk 0:00:05.1]} 42. Rb7 {[%clk 0:00:14.1]}
42... Bc5 {[%clk 0:00:05]} 43. Nc3 {[%clk 0:00:13.4]} 43... Bd4 {[%clk
0:00:05.4]} 44. Rb5 {[%clk 0:00:12.8]} 44... Bxc3 {[%clk 0:00:05.6]} 45. bxc3
{[%clk 0:00:12.7]} 45... h5 {[%clk 0:00:06.1]} 46. f3 {[%clk 0:00:12.6]} 46...
g6 {[%clk 0:00:06.5]} 47. Kf2 {[%clk 0:00:12.9]} 47... Kg7 {[%clk 0:00:07]} 48.
Ke3 {[%clk 0:00:13.1]} 48... Kf6 {[%clk 0:00:07.5]} 49. Kd4 {[%clk 0:00:13.2]}
49... Re8 {[%clk 0:00:07.6]} 50. Rb6+ {[%clk 0:00:13.1]} 50... Ke7 {[%clk
0:00:07]} 51. Kc5 {[%clk 0:00:11.3]} 51... Rc8+ {[%clk 0:00:06.3]} 52. Kd4
{[%clk 0:00:10.7]} 52... Rd8 {[%clk 0:00:06.6]} 53. Kc5 {[%clk 0:00:10.2]} 53...
Rc8+ {[%clk 0:00:06.6]} 54. Kd4 {[%clk 0:00:10.1]} 54... Bf5 {[%clk 0:00:06.7]}
55. Ke5 {[%clk 0:00:08.7]} 55... Bd7 {[%clk 0:00:06.6]} 56. Rb7 {[%clk
0:00:08.4]} 56... Rc5 {[%clk 0:00:06.2]} 57. Kd4 {[%clk 0:00:07.9]} 57... Rc8
{[%clk 0:00:06.4]} 58. Ke5 {[%clk 0:00:07.8]} 58... f6+ {[%clk 0:00:06.7]} 59.
Kd4 {[%clk 0:00:07.8]} 59... Kd6 {[%clk 0:00:05.8]} 60. Rb6+ {[%clk 0:00:07.4]}
60... Ke7 {[%clk 0:00:06.2]} 61. Rb7 {[%clk 0:00:07.4]} 61... Kd6 {[%clk
0:00:06.3]} 62. Rb6+ {[%clk 0:00:07.4]} 62... Ke7 {[%clk 0:00:06.6]} 63. Rb7
{[%clk 0:00:07.8]} 1/2-1/2